Cogmind - Beta 15 @@@ ROGUE MODE // 2025.07.22 @ 15:37:32 Player: Skysub Result: Destroyed by Piercing Trap Performance ------------- Evolutions (0) 0 Regions Visited (2) 400 Robots Destroyed (38) 190 Value Destroyed (951) 951 Prototype IDs (1) 20 Alien Tech Used (0) 0 Bonus (-178) -178 TOTAL SCORE: 1383 Bonus ------- Follower Combat Kills 7 Friendly Fire -185 Cogmind --------- Core Integrity 0/250 Matter 272/300 Energy 99/100 System Corruption 0% Temperature Cool (0) Movement Rolling (90) Location -10/Subcaves Parts ------- > --- POWER (1) -------- Subdweller Power Source > --- PROPULSION (2) --- Armored Wheel Subdweller Monowheel > --- UTILITY (2) ------ Small Storage Unit Structural Scanner > --- WEAPON (2) ------- (None) > --- INVENTORY (8) ---- Makeshift Thermal Plating Scrap Shield V3-11A's Pendant Subdweller Laser Shotgun Subdweller Machine Gun Subdweller Shrapnel Launcher Peak State ------------ > --- POWER ------------ Ion Engine > --- PROPULSION ------- Light Treads Armored Wheel > --- UTILITY ---------- Small Storage Unit Structural Scanner > --- WEAPON ----------- Autogun Heavy Battle Rifle > --- INVENTORY -------- Armored Wheel Light Armor Plating Scrap Shield Autogun Grenade Launcher Subdweller Shrapnel Launcher Mining Laser [Rating: 13] Favorites ----------- Power Subdweller Power Source Engine Subdweller Power Source Propulsion Armored Wheel Treads Light Treads Wheel Armored Wheel Utility Small Storage Unit Device Structural Scanner Storage Small Storage Unit Protection Light Armor Plating Weapon Grenade Launcher Ballistic Gun Shotgun Launcher Grenade Launcher Special Weapon Mining Laser Build | -11 -10 -10 ------- Run | Yrd Mat Sub Slots Evolved . | . . . Power . | . . . Propulsion . | . . . Utility . | . . . Weapon . | . . . Parts Attached 29 | 6 7 16 Power 4 | 1 . 3 Engine 4 | 1 . 3 Core . | . . . Reactor . | . . . Propulsion 9 | 2 2 5 Treads 2 | 2 . . Leg . | . . . Wheel 7 | . 2 5 Hover . | . . . Flight . | . . . Utility 5 | 1 1 3 Device 2 | . 1 1 Storage 2 | 1 . 1 Processor . | . . . Hackware . | . . . Protection 1 | . . 1 Artifact . | . . . Weapon 11 | 2 4 5 Energy Gun . | . . . Energy Cannon . | . . . Ballistic Gun 9 | 2 4 3 Ballistic Cannon . | . . . Launcher 1 | . . 1 Special Weapon 1 | . . 1 Impact Weapon . | . . . Slashing Weapon . | . . . Piercing Weapon . | . . . Special Melee Weapon . | . . . Unidentified Prototypes 1 | . . 1 Parts Lost 7 | . . 7 Power 1 | . . 1 Propulsion 2 | . . 2 Utility 1 | . . 1 Weapon 3 | . . 3 Highest Loss Streak 2 | . . 2 To Critical Strikes 1 | . . 1 Average Backups 8 | 2 7 9 Power . | . 1 . Propulsion 1 | 1 2 . Utility 1 | . . 2 Weapon 5 | 1 3 5 Tool/Special . | . . . Unused Backups 12 | . 3 9 Power 1 | . . 1 Propulsion 2 | . 2 . Utility 2 | . . 2 Weapon 7 | . 1 6 Tool/Special . | . . . Average Slot Usage (%) 90 | . 94 89 Engine 13 | . 13 13 Treads 6 | . 17 2 Wheel 20 | . 10 24 Device 7 | . 9 5 Storage 14 | . 14 14 Protection 1 | . . 2 Ballistic Gun 13 | . 27 7 Launcher 8 | . . 11 Special Weapon 4 | . . 5 Peak Build Rating 13 | 6 11 13 Average Rating 10 | 5 9 11 On Entrance 5 | . 6 11 Naked Turns . | . . . Heaviest Build 212 | 13 17 212 Greatest Support 40 | 40 40 32 Greatest Overweight (x) 17 | . 5 17 Average Overweight (x) 2 | . . 3 Largest Inventory Capacity 35 | 8 8 35 Average Capacity 15 | 7 8 19 Most Carried 15 | 5 8 15 Average Carried 9 | 2 7 10 Final Capacity 8 | 8 8 8 Final Carried 8 | 5 8 8 Class Distribution -------------------- 70% | Mutant 29% | Hauler-Mutant Dominant Class ---------------- Mutant | -10/Materials Mutant | -10/Subcaves Resources | -11 -10 -10 ----------- Run | Yrd Mat Sub Matter Collected 1193 | 280 317 596 Remotely . | . . . Salvage Created 1138 | 42 652 444 Parts 88 | 9 35 44 Haulers Intercepted . | . . . Recyclers Shooed 3 | 1 2 . Parts Field Recycled . | . . . Retrieved Matter . | . . . Parts Self-Destructed 18 | . . 18 Prevented . | . . . Kills | -11 -10 -10 ------- Run | Yrd Mat Sub Combat Hostiles Destroyed 29 | . 13 16 Guns 21 | . 13 8 AOE 8 | . . 8 Classes Destroyed 8 | 1 6 1 Worker 1 | . 1 . Builder 1 | . 1 . Tunneler 3 | 3 . . Recycler 2 | . 2 . Watcher 1 | . 1 . Swarmer 8 | . 3 5 Grunt 10 | . 10 . Subdweller 12 | . . 12 Best Kill Streak 4 | 3 4 3 Combat Bots Only 3 | . 3 3 Max Kills in Single Turn 2 | 1 1 2 Gunslinging . | . . . Exploded 2 | . . 2 Melee . | . . . Uniques/NPCs Destroyed . | . . . Combat | -11 -10 -10 -------- Run | Yrd Mat Sub Hostile Shots Fired 118 | . 45 73 Missed 28 | . 8 20 Hits 90 | . 37 53 Projectile 90 | . 37 53 Critical Strikes 1 | . . 1 Damage Taken 1436 | . 448 988 Core 258 | . 99 159 Absorbed by Shields . | . . . Core Remaining (%) 100 | 100 . . Volleys Fired 88 | 5 39 44 Largest 2 | 2 2 2 Hottest 100 | 40 43 100 Shots Fired 155 | 10 76 69 Gun 131 | 10 76 45 Cannon . | . . . Launcher 20 | . . 20 Special 4 | . . 4 Kinetic 131 | 10 76 45 Thermal 4 | . . 4 Explosive 20 | . . 20 Electromagnetic . | . . . Robot Hit Streak 11 | 3 8 11 Robot Miss Streak 3 | 3 2 3 Penetration Max . | . . . Secondary Targets 1 | . . 1 Max Gunslinging Chain 1 | . . 1 Shots Hit Robots 101 | 4 55 42 Core Hits 67 | 4 32 31 Critical Kills 2 | . 2 . Critical Parts Destroyed . | . . . Critical Strikes 2 | . 2 . Destroy 2 | . 2 . Melee Attacks . | . . . Impact . | . . . Slashing . | . . . Piercing . | . . . Sneak Attacks . | . . . Combat Hostiles . | . . . Follow-up Attacks . | . . . Damage Inflicted 2288 | 62 774 1452 Guns 1388 | 62 755 571 Cannons . | . . . Explosions 881 | . . 881 Melee . | . . . Ramming 19 | . 19 . Kinetic 1388 | 62 755 571 Thermal . | . . . Explosive 881 | . . 881 Electromagnetic . | . . . Impact . | . . . Slashing . | . . . Piercing . | . . . Highest Corruption . | . . . Average Corruption . | . . . Corruption Purged . | . . . Corruption Blocked . | . . . Overload Shots . | . . . Overflow Damage 38 | . . 38 Projectiles . | . . . Explosions 38 | . . 38 Melee . | . . . Knockbacks . | . . . Impact . | . . . Kinetic . | . . . Secondary . | . . . Self-Inflicted Damage 52 | . . 52 Shots 2 | . . 2 Rammed 3 | . 3 . Targets Rammed 3 | . 3 . Kicked . | . . . Crushed . | . . . Highest Temperature 3 | . 3 . Average Temperature 3 | . 3 . Received Heat Transfer 285 | . 219 66 Siege Activations . | . . . Martial Activations . | . . . Shielding Activations . | . . . Robots Disrupted . | . . . Combat Hostiles . | . . . Robots Corrupted . | . . . Combat Hostiles . | . . . Parts Fried . | . . . Impact Corruptions . | . . . Robots Melted . | . . . Combat Hostiles . | . . . Parts Melted . | . . . Heat Transferred . | . . . Parts Sabotaged . | . . . Parts Stolen . | . . . Parts Stripped . | . . . Power Chain Reactions . | . . . Alert | -11 -10 -10 ------- Run | Yrd Mat Sub Maximum Alert Level . | . . . Low Security (%) 100 | 100 100 . Level 1 . | . . . Level 2 . | . . . Level 3 . | . . . Level 4 . | . . . Level 5 . | . . . High Security . | . . . Max Security . | . . . Peak Influence 177 | 10 177 . Initial . | . . . Average 79 | 1 88 . Influence Increases 757 | 15 520 222 Destroy 0b10 Robot/C 400 | . 260 140 Destroy 0b10 Robot/NC 40 | 15 25 . Destroy Leader 72 | . 62 10 Allied During Kill 12 | . . 12 Successful Hack 8 | . 8 . Select Force Hacks 60 | . 60 . Disable Machine 15 | . 15 . Lose Combat Pursuer 150 | . 90 60 Influence Decreases 673 | 15 455 203 Entered New Map 32 | . . 32 Time Decay 551 | 15 455 81 Lost Part 30 | . . 30 Lost Ally 60 | . . 60 Squads Dispatched 4 | . 4 . Investigation 2 | . 2 . Extermination . | . . . Reinforcement 2 | . 2 . Assault . | . . . Garrison . | . . . Intercept . | . . . Searches Triggered . | . . . Construction Impeded . | . . . Haulers Reinforced . | . . . Active Scanning Responses . | . . . Cargo Convoy Interrupts . | . . . Stealth | -11 -10 -10 --------- Run | Yrd Mat Sub Distress Signals 2 | . 2 . Communications Jammed . | . . . Distress Signals . | . . . Times Spotted 45 | . 28 17 Peak Tracking Total 7 | . 7 6 Tactical Retreats 4 | . 2 2 Traps | -11 -10 -10 ------- Run | Yrd Mat Sub Traps Triggered 4 | . 3 1 Indirectly . | . . . Trap Hack Attempts . | . . . Triggered . | . . . Disarmed . | . . . Reprogrammed . | . . . Reused . | . . . Traps Extracted . | . . . Installed . | . . . Triggered . | . . . Machines | -11 -10 -10 ---------- Run | Yrd Mat Sub Machines Disabled 1 | . 1 . Max in Single Turn 1 | . 1 . Machines Repaired . | . . . Machines Dismantled . | . . . Machines Sabotaged . | . . . Overloaded Fab Kills . | . . . Hacking | -11 -10 -10 --------- Run | Yrd Mat Sub Machines Accessed 7 | . 7 . Terminals 5 | . 5 . Fabricators . | . . . Repair Stations . | . . . Recycling Units 2 | . 2 . Scanalyzers . | . . . Garrison Access . | . . . Total Hacks 18 | . 18 . Successful 12 | . 12 . Failed 6 | . 6 . Catastrophic 2 | . 2 . Database Lockouts . | . . . Manual 13 | . 13 . Terminals 11 | . 11 . Fabricators . | . . . Repair Stations . | . . . Recycling Units 7 | . 7 . Scanalyzers . | . . . Garrison Access . | . . . Terminal Hacks 1 | . 1 . Locate Traps 1 | . 1 . Fabricator Hacks . | . . . Repair Station Hacks . | . . . Recycling Unit Hacks 3 | . 3 . Report Inventory 2 | . 2 . Retrieve Components 1 | . 1 . Scanalyzer . | . . . Garrison Access Hacks . | . . . Unauthorized Hacks 8 | . 8 . Terminals 6 | . 6 . Botnet 1 | . 1 . Skim 5 | . 5 . Fabricators . | . . . Repair Stations . | . . . Recycling Units 2 | . 2 . Tunnel 2 | . 2 . Scanalyzers . | . . . Garrison Access . | . . . Data Cores Recovered . | . . . Used . | . . . Hacking Detections 5 | . 5 . Full Trace Events . | . . . Feedback Events . | . . . Feedback Blocked . | . . . Robot Schematics Acquired . | . . . Robots Built . | . . . Authchips . | . . . Time . | . . . Total Robot Build Rating . | . . . Part Schematics Acquired . | . . . Parts Built . | . . . Authchips . | . . . Time . | . . . Total Part Build Rating . | . . . Parts Repaired . | . . . Time . | . . . Parts Recycled . | . . . Recycled Matter . | . . . Retrieved Matter . | . . . Retrieved Components 10 | . 10 . Parts Scanalyzed . | . . . Part Schematics Acquired . | . . . Parts Damaged . | . . . Bothacking | -11 -10 -10 ------------ Run | Yrd Mat Sub Used RIF Installer . | . . . Robots Hacked . | . . . Non-combat . | . . . Combat . | . . . Robot Hacks Applied . | . . . Relay Couplers Released . | . . . Fabnet Peak Effective % . | . . . Robots Rewired . | . . . Allies Hacked . | . . . Hacks Repelled . | . . . Allies | -11 -10 -10 -------- Run | Yrd Mat Sub Total Allies 5 | . . 5 Largest Group 3 | . . 3 Highest-Rated Group 57 | . . 57 Highest-Rated Ally 19 | . . 19 Total Orders . | . . . Ally Attacks 15 | . . 15 Total Damage 170 | . . 170 Kills 2 | . . 2 Allies Corrupted . | . . . Allies Melted . | . . . Intel | -11 -10 -10 ------- Run | Yrd Mat Sub Active Infowar (turns) 1392 | . 847 545 Structural 1392 | . 847 545 Robot Analysis Total . | . . . Derelict Logs Recovered 1 | . . 1 Drone Launches . | . . . Drone Recoveries . | . . . Exploration | -11 -10 -10 ------------- Run | Yrd Mat Sub Turns Passed 4158 | 142 1191 2825 Spaces Moved 2409 | 74 604 1731 Core 4 | 3 1 . Treads 822 | 71 516 235 Legs . | . . . Wheels 1583 | . 87 1496 Hover . | . . . Flight . | . . . Fastest Speed 50 | 50 90 85 Average Speed 152 | 155 152 152 Slowest Speed 345 | 160 300 345 Overloaded Moves . | . . . Propulsion Burnouts . | . . . Robots Hopped . | . . . Potential Cave-ins . | . . . Cave-ins Triggered . | . . . Exploration Rate (%) 63 | 4 99 88 Regions Visited 2 Branch Regions 1 Pre-discovered Areas 4 | . 2 2 Known Exits Taken . | . . . Unknown Exits Taken 2 | 1 1 . Scrap Searched 1 | . . 1 Spaces Dug 20 | . . 20 Terrain Destroyed 136 | . . 136 Melee . | . . . Projectile . | . . . AOE 136 | . . 136 Terrain Rammed . | . . . Walls Destroyed . | . . . Machines Disabled . | . . . Actions | -11 -10 -10 --------- Run | Yrd Mat Sub Total 2730 | 89 794 1847 Wait 140 | . 120 20 Move 2407 | 73 603 1731 Hop . | . . . Pick Up 30 | 5 7 18 Fast Attach 19 | 6 8 5 Attach 3 | . . 3 Detach 1 | . . 1 Swap 20 | . 7 13 Drop 18 | . 7 11 Fire 88 | 5 39 44 Melee . | . . . Ram . | . . . Kick . | . . . Crush 3 | . 3 . Escape Stasis . | . . . Rewire 1 | . . 1 Trap . | . . . Miscellaneous . | . . . Route ------- -11/Scrapyard -10/Materials (discovered 5 exits: [*Mat x3] / [*Min] / [*Sub]) -10/Subcaves (discovered 2 exits: [*Mat x2]) History --------- Turn | Location | Event 12 | -11/Scrapyard | Discovered new exit (range 14) 143 | -11/Scrapyard | Entered Materials 310 | -10/Materials | Build established: Mutant 625 | -10/Materials | Discovered new exit (range 12) 757 | -10/Materials | Discovered new exit (range 8) 1125 | -10/Materials | Discovered new exit (range 8) 1268 | -10/Materials | Learned 4 Subcaves zone layouts 1283 | -10/Materials | Discovered new exit (range 16) 1297 | -10/Materials | Discovered new exit (range 11) 1334 | -10/Materials | Entered Subcaves 1335 | -10/Subcaves | Approached by a straggling Scientist 1427 | -10/Subcaves | Learned location of Zion (-7) 1427 | -10/Subcaves | Met a Zionite searching for "candidates" 1503 | -10/Subcaves | Shifting Twisted Machinery released Scrap Shield 1522 | -10/Subcaves | Shifting Twisted Machinery released Sub. Shrapnel Launcher 1536 | -10/Subcaves | Discovered new exit (range 10) 1602 | -10/Subcaves | Core integrity fell below 50% 1606 | -10/Subcaves | Core integrity fell below 20% 1851 | -10/Subcaves | Shifting Twisted Machinery released Sub. Beam Cannon 1853 | -10/Subcaves | Shifting Twisted Machinery released Sub. Monowheel 1925 | -10/Subcaves | Ambushed by Subdwellers from Twisted Machinery 2154 | -10/Subcaves | A swath of the cavern ceiling suddenly collapsed 2328 | -10/Subcaves | Build established: Hauler-Mutant 2491 | -10/Subcaves | A swath of the cavern ceiling suddenly collapsed 2655 | -10/Subcaves | Visited triangular shrine 2676 | -10/Subcaves | Found Prototype Device 3274 | -10/Subcaves | Identified V3-11A's Pendant 3440 | -10/Subcaves | Approached by friendly Subdweller 3469 | -10/Subcaves | Befriended Subdweller 3508 | -10/Subcaves | Shifting Twisted Machinery released Sub. Shrapnel Launcher 3559 | -10/Subcaves | Build established: Mutant 3579 | -10/Subcaves | Befriended Subdweller 3579 | -10/Subcaves | Befriended Subdweller 3659 | -10/Subcaves | Lost 4 allies 3680 | -10/Subcaves | Approached by friendly Subdweller 4100 | -10/Subcaves | Discovered new exit (range 8) 4159 | -10/Subcaves | Destroyed by Piercing Trap Last Messages --------------- 03619_ 7U-PKM(R) affixes Scrap Shield Fragment to Scrap Shield. 03622_ CI-YWG(R) destroyed. 03658_ Acquired 46 matter. 03659_ Acquired 7 matter. 03661_ Acquired 11 matter. 03669_ S-10 Pest destroyed. 03674_ Flight Unit fries itself beyond repair. 03684_ Lgt. Assault Rifle fries itself beyond repair. 03849_ Acquired 10 matter. 03958_ The unstable cave ceiling collapses. 04052_ Acquired 7 matter. 04077_ BR-M6Q(R) affixes Scrap Shield Fragment to Scrap Shield. 04100_ EXIT=FOUND 04159_ Triggered Piercing Trap. 04159_ Spikes shoot up from the floor. 04159_ Grenade Launcher destroyed. 04159_ Critical hit (Impale). Map ----- +----------------------------------------------------+ | # # ### ### ###" ##???## | | & & #### ##### # ##????# | | "" ## ####### #####?????# # | | ###&" ## ## ###### " ###???????## | | #### ### ## ###### ###### ##????????# # | | ######### # ####### ##### " #####?????# # | | ??####### # # # ### # " #####?????# | | ##?###?## ## ##????? | | ##### ## ##?????#### | | #### ## ## #### ###? ????????????? | | ### "" ###### ####### ######????????????? | | ## """ ## ####### #####?????????????? | | #### "" # ##?### #########???????? | | #####" ## ##?## ################ | | ###### ### #### ## # ########## | | ###### ##### ###? ##### ## # # | | " ##### ########## ## ### # | | """ #### #??####?## ## < #### ### ## # | | "" ########???????## ## ### ## ######## | | " ##" ####??????### #### ######### ######## | | """ " ##????????### ### ##### ### ####### # | | "" "" "#????????## ### ### # | | " " """ ""??????? ## ### R # # | | " "## ????????### ## #### # | | ## "###????????## ^ ########## # | | " ##"###?????????## ## @ ############## # # | | ######?????????## #### ######??????######## # | | ####??????????????#########??????????####### # | | ##?????????????????######????????????????###### | | ##????????????????????????????????????????##### | | ###???????????????????????????????????????????? | | ####??????????????????????????????????????????? | | ########?????????????????????????????????????? | | # #######?????????????????????????????????????? | | # ### ##?????????????????????????????????????? | | ## ##?????????????????????????????????????? | | ## ###?????????????????????????????????????? | | ### #######??????????????????????????????????? | | #############?????????????????????????????????? | | #### #####???????????????????????????????? | | ####???????????????????????????????? | | #######??????????????????????????? | | # ########?????????????????????????? | | ## ## ###?????????????????????????? | | ### # ##?????????????????????????? | | ##### ### ###?????????????????????????? | | ########## ###??????????????????????????? | | ###?##### ####?????????????????????????? | | ##??### ### ##?????????????????????????? | | ##??## ##### ##?????????????????????????? | +----------------------------------------------------+ Best States ------------- Heat Dissipation 25 Energy Generation 15 Energy Capacity 250 Matter Stores 300 Matter Capacity 300 Sight Range 16 Terrain Scan Density 10 Armor Coverage 150 Evasion (%) 40 Recoil Reduction 2 Item Schematics ----------------- None Robot Schematics ------------------ None Fabricated ------------ Nothing Repaired ---------- Nothing Alien Tech Used ----------------- None Achievements -------------- None Challenges ------------ None Game ------ Seed StrikeControlMembrane Manual? 0 Play Time 00:23:06 Cumulative 172.8 hours Start 2025.07.22 @ 15:19:01 End 2025.07.22 @ 15:37:32 Sessions 1 Manual Loads 0 Difficulty Rogue Special Mode None Game No. 196 Rogue 196 Adventurer 0 Explorer 0 Win Type - Total 3 Types 1/0/0/1/0/0/0/0/0/1 Lore% 68 Gallery% 63 Achievement% 56 Wizard Run 0 Options --------- Layout 1 ASCII 0 Keyboard 1 Movement Arrows Keybinds 0 Fullscreen 1 Font 36/Smallcaps Map View 50x40 Zoom Use 0% Tactical HUD 1 Map Filters NONE Filters NONE Steam 1 RUN: 7b880262-5ea1-41d7-b86f-d82135d8b0bf